[Event "*** Titled Tuesday Blitz"]
[Site "Chess.com"]
[Date "2020.12.01"]
[Round "5"]
[White "PowerThinking2650"]
[Black "azikom"]
[Result "0-1"]
[WhiteElo "2450"]
[BlackElo "2630"]
[TimeControl "180+1"]
[EndTime "10:55:27 PST"]
[Termination "azikom won by resignation"]

1. e4 {[%clk 0:03:00.9]} 1... c5 {[%clk 0:02:58]} 2. Nf3 {[%clk 0:03:00.4]} 2...
e6 {[%clk 0:02:58.3]} 3. d4 {[%clk 0:03:00.2]} 3... cxd4 {[%clk 0:02:59]} 4.
Nxd4 {[%clk 0:03:01]} 4... a6 {[%clk 0:02:59.5]} 5. Nc3 {[%clk 0:03:01.1]} 5...
b5 {[%clk 0:02:58.8]} 6. Bd3 {[%clk 0:03:00.8]} 6... Bb7 {[%clk 0:02:58.5]} 7.
O-O {[%clk 0:02:58.6]} 7... b4 {[%clk 0:02:53.8]} 8. Nce2 {[%clk 0:02:57.5]}
8... Nf6 {[%clk 0:02:47.5]} 9. Ng3 {[%clk 0:02:56.3]} 9... Nc6 {[%clk
0:02:40.1]} 10. Be3 {[%clk 0:02:42.3]} 10... Be7 {[%clk 0:02:30.9]} 11. f4
{[%clk 0:02:23.3]} 11... d6 {[%clk 0:02:27.6]} 12. Qf3 {[%clk 0:01:40.9]} 12...
Nxd4 {[%clk 0:02:23.4]} 13. Bxd4 {[%clk 0:01:40.5]} 13... O-O {[%clk 0:02:22.7]}
14. Rae1 {[%clk 0:01:37.6]} 14... a5 {[%clk 0:02:13.1]} 15. Nh5 {[%clk
0:01:27.3]} 15... Rc8 {[%clk 0:02:04.8]} 16. Re3 {[%clk 0:01:16.6]} 16... g6
{[%clk 0:01:47.9]} 17. Nxf6+ {[%clk 0:00:35.8]} 17... Bxf6 {[%clk 0:01:47.3]}
18. Bxf6 {[%clk 0:00:35.5]} 18... Qxf6 {[%clk 0:01:46.8]} 19. e5 {[%clk
0:00:32.2]} 19... Bxf3 {[%clk 0:01:41.7]} 20. exf6 {[%clk 0:00:33.1]} 20... Bd5
{[%clk 0:01:42]} 21. Ra1 {[%clk 0:00:22]} 21... Rc5 {[%clk 0:01:32.9]} 22. b3
{[%clk 0:00:16.8]} 22... h5 {[%clk 0:01:25.7]} 23. a3 {[%clk 0:00:16.6]} 23...
Rb8 {[%clk 0:01:24.9]} 24. axb4 {[%clk 0:00:16.5]} 24... Rxb4 {[%clk 0:01:24.3]}
25. g3 {[%clk 0:00:15]} 25... Kh7 {[%clk 0:01:07.4]} 26. h4 {[%clk 0:00:15.1]}
26... Bc6 {[%clk 0:00:57.3]} 27. Rd1 {[%clk 0:00:14]} 27... d5 {[%clk
0:00:53.3]} 28. Ra1 {[%clk 0:00:12.9]} 28... Kg8 {[%clk 0:00:52.6]} 29. Re5
{[%clk 0:00:13]} 29... Kf8 {[%clk 0:00:47.2]} 30. Kf2 {[%clk 0:00:13.3]} 30...
Ke8 {[%clk 0:00:31.7]} 31. Ke1 {[%clk 0:00:13.6]} 31... Kd7 {[%clk 0:00:31.3]}
32. Kd2 {[%clk 0:00:14.1]} 32... Kd6 {[%clk 0:00:30.5]} 33. Ra3 {[%clk
0:00:12.2]} 33... a4 {[%clk 0:00:24.4]} 34. bxa4 {[%clk 0:00:11.7]} 34... Rxa4
{[%clk 0:00:24.4]} 35. Rxa4 {[%clk 0:00:11.4]} 35... Bxa4 {[%clk 0:00:24.1]} 36.
Re1 {[%clk 0:00:11.5]} 36... Bb5 {[%clk 0:00:20.9]} 37. Ra1 {[%clk 0:00:09.2]}
37... Bxd3 {[%clk 0:00:19.9]} 38. cxd3 {[%clk 0:00:09.6]} 38... Rc7 {[%clk
0:00:19.6]} 39. Ra6+ {[%clk 0:00:09.2]} 39... Kd7 {[%clk 0:00:19.4]} 40. Ke3
{[%clk 0:00:09.5]} 40... Rb7 {[%clk 0:00:19]} 41. Kd4 {[%clk 0:00:09.8]} 41...
Kd8 {[%clk 0:00:18.4]} 42. Ke5 {[%clk 0:00:09.8]} 42... Kd7 {[%clk 0:00:18.3]}
43. Ra5 {[%clk 0:00:09.1]} 43... Kc6 {[%clk 0:00:18.2]} 44. Ra6+ {[%clk
0:00:09.2]} 44... Kc5 {[%clk 0:00:18.4]} 45. Rxe6 {[%clk 0:00:08.6]} 45... fxe6
{[%clk 0:00:18.2]} 46. Kxe6 {[%clk 0:00:09.1]} 46... Kd4 {[%clk 0:00:18.6]} 47.
f7 {[%clk 0:00:09.6]} 47... Rb8 {[%clk 0:00:18.7]} 48. Kf6 {[%clk 0:00:09.9]}
48... Kxd3 {[%clk 0:00:19]} 49. Kxg6 {[%clk 0:00:10.3]} 49... Ke4 {[%clk
0:00:19.3]} 50. f5 {[%clk 0:00:08.6]} 50... d4 {[%clk 0:00:19.3]} 51. f6 {[%clk
0:00:09.2]} 51... d3 {[%clk 0:00:19.5]} 52. Kg7 {[%clk 0:00:09.9]} 52... Ke5
{[%clk 0:00:19.6]} 53. f8=Q {[%clk 0:00:09.1]} 53... Rxf8 {[%clk 0:00:19.5]} 54.
Kxf8 {[%clk 0:00:10]} 54... Kxf6 {[%clk 0:00:19.8]} 0-1

[Event "*** Titled Tuesday Blitz"]
[Site "Chess.com"]
[Date "2020.12.01"]
[Round "5"]
[White "kagg1125"]
[Black "StockholmMissile"]
[Result "1-0"]
[WhiteElo "2560"]
[BlackElo "2369"]
[TimeControl "180+1"]
[EndTime "10:55:27 PST"]
[Termination "kagg1125 won on time"]

1. e4 {[%clk 0:02:59.6]} 1... e5 {[%clk 0:02:58.4]} 2. Nf3 {[%clk 0:02:59.2]}
2... Nc6 {[%clk 0:02:57.8]} 3. Bb5 {[%clk 0:02:58.5]} 3... a6 {[%clk 0:02:54.8]}
4. Ba4 {[%clk 0:02:53.7]} 4... Nf6 {[%clk 0:02:49.2]} 5. O-O {[%clk 0:02:52.4]}
5... Be7 {[%clk 0:02:48.7]} 6. d3 {[%clk 0:02:52]} 6... b5 {[%clk 0:02:46.4]} 7.
Bb3 {[%clk 0:02:52.1]} 7... d6 {[%clk 0:02:45.2]} 8. a3 {[%clk 0:02:50.6]} 8...
O-O {[%clk 0:02:44.8]} 9. Nc3 {[%clk 0:02:48.8]} 9... h6 {[%clk 0:02:41]} 10. h3
{[%clk 0:02:47]} 10... Re8 {[%clk 0:02:40.2]} 11. Nd5 {[%clk 0:02:40.6]} 11...
Be6 {[%clk 0:02:29.8]} 12. Bd2 {[%clk 0:02:36.3]} 12... Bf8 {[%clk 0:02:25.1]}
13. Qe2 {[%clk 0:02:21.9]} 13... g6 {[%clk 0:01:47.6]} 14. c4 {[%clk 0:02:10.7]}
14... Bg7 {[%clk 0:01:40.1]} 15. Rac1 {[%clk 0:01:57.2]} 15... bxc4 {[%clk
0:01:38.3]} 16. Bxc4 {[%clk 0:01:54]} 16... Bxd5 {[%clk 0:01:32.1]} 17. Bxd5
{[%clk 0:01:49.1]} 17... Nxd5 {[%clk 0:01:30.2]} 18. Rxc6 {[%clk 0:01:49.5]}
18... Ne7 {[%clk 0:01:29.3]} 19. Rc2 {[%clk 0:01:48.5]} 19... c5 {[%clk
0:01:25]} 20. b4 {[%clk 0:01:39.4]} 20... cxb4 {[%clk 0:01:22.8]} 21. axb4
{[%clk 0:01:37.7]} 21... Qb6 {[%clk 0:01:12.2]} 22. Rb1 {[%clk 0:01:19.8]} 22...
Rec8 {[%clk 0:01:09.4]} 23. Be3 {[%clk 0:01:19.6]} 23... Qb5 {[%clk 0:00:59.5]}
24. Rc4 {[%clk 0:01:16.4]} 24... Rc6 {[%clk 0:00:49.1]} 25. Qa2 {[%clk
0:01:08.7]} 25... Rac8 {[%clk 0:00:31.3]} 26. Rbc1 {[%clk 0:01:04.4]} 26... Qb7
{[%clk 0:00:21.4]} 27. Nd2 {[%clk 0:00:44.2]} 27... d5 {[%clk 0:00:17.3]} 28.
Rxc6 {[%clk 0:00:41.6]} 28... Rxc6 {[%clk 0:00:17.2]} 29. Rxc6 {[%clk
0:00:41.5]} 29... Qxc6 {[%clk 0:00:17.3]} 30. Bc5 {[%clk 0:00:39]} 30... Bf8
{[%clk 0:00:11.4]} 31. Qb2 {[%clk 0:00:39.1]} 31... dxe4 {[%clk 0:00:09.7]} 32.
dxe4 {[%clk 0:00:38.1]} 32... f6 {[%clk 0:00:07.6]} 33. Qb3+ {[%clk 0:00:37.9]}
33... Kg7 {[%clk 0:00:06.8]} 34. Nc4 {[%clk 0:00:34]} 34... Qxe4 {[%clk
0:00:05.3]} 35. Nd6 {[%clk 0:00:30.9]} 35... Qd5 {[%clk 0:00:05]} 36. Ne8+
{[%clk 0:00:29]} 36... Kf7 {[%clk 0:00:04.3]} 37. Nd6+ {[%clk 0:00:29]} 37...
Ke6 {[%clk 0:00:02.6]} 38. Qc2 {[%clk 0:00:19.4]} 38... Qc6 {[%clk 0:00:01.6]}
39. Qc4+ {[%clk 0:00:18]} 39... Qd5 {[%clk 0:00:02]} 40. Qxa6 {[%clk 0:00:17.9]}
40... Qd1+ {[%clk 0:00:01.8]} 41. Kh2 {[%clk 0:00:17.8]} 41... Qd5 {[%clk
0:00:01.6]} 42. Ne8+ {[%clk 0:00:16]} 42... Kf7 {[%clk 0:00:01.3]} 43. Nxf6
{[%clk 0:00:16.1]} 43... Qe6 {[%clk 0:00:01.4]} 44. Qxe6+ {[%clk 0:00:15]} 44...
Kxe6 {[%clk 0:00:02.3]} 45. Ne4 {[%clk 0:00:15.9]} 45... Bg7 {[%clk 0:00:02.4]}
46. Bxe7 {[%clk 0:00:15.1]} 46... Kxe7 {[%clk 0:00:02.7]} 47. f3 {[%clk
0:00:15.5]} 47... Ke6 {[%clk 0:00:03.1]} 48. Kg1 {[%clk 0:00:15]} 48... Bf8
{[%clk 0:00:03.4]} 49. b5 {[%clk 0:00:14.7]} 49... Kd5 {[%clk 0:00:04.3]} 50.
Kf1 {[%clk 0:00:14.4]} 50... Kc4 {[%clk 0:00:03]} 51. b6 {[%clk 0:00:14.5]} 1-0

[Event "*** Titled Tuesday Blitz"]
[Site "Chess.com"]
[Date "2020.12.01"]
[Round "5"]
[White "chess94cu"]
[Black "Vincent_Vega95"]
[Result "0-1"]
[WhiteElo "2560"]
[BlackElo "2765"]
[TimeControl "180+1"]
[EndTime "10:55:30 PST"]
[Termination "Vincent_Vega95 won on time"]

1. d4 {[%clk 0:02:47.2]} 1... Nf6 {[%clk 0:02:59.3]} 2. c4 {[%clk 0:02:46.2]}
2... g6 {[%clk 0:02:59.9]} 3. Nc3 {[%clk 0:02:45.5]} 3... Bg7 {[%clk 0:03:00.6]}
4. e4 {[%clk 0:02:44.3]} 4... O-O {[%clk 0:03:01.1]} 5. Be2 {[%clk 0:02:44.2]}
5... d6 {[%clk 0:03:01.4]} 6. Bg5 {[%clk 0:02:44.3]} 6... h6 {[%clk 0:03:00.9]}
7. Be3 {[%clk 0:02:43.9]} 7... c5 {[%clk 0:03:01.3]} 8. d5 {[%clk 0:02:43.8]}
8... e6 {[%clk 0:03:01.6]} 9. Qd2 {[%clk 0:02:18.9]} 9... exd5 {[%clk
0:03:01.5]} 10. exd5 {[%clk 0:02:18.1]} 10... h5 {[%clk 0:02:53]} 11. h3 {[%clk
0:02:17.3]} 11... b5 {[%clk 0:02:39.8]} 12. cxb5 {[%clk 0:02:12.6]} 12... a6
{[%clk 0:02:36.9]} 13. Nf3 {[%clk 0:02:10.2]} 13... axb5 {[%clk 0:02:36.9]} 14.
Bxb5 {[%clk 0:02:10]} 14... Ba6 {[%clk 0:02:35.6]} 15. Bxa6 {[%clk 0:02:06.5]}
15... Nxa6 {[%clk 0:02:34.8]} 16. O-O {[%clk 0:02:06.7]} 16... Qa5 {[%clk
0:02:29.5]} 17. Bf4 {[%clk 0:01:53.2]} 17... Rfd8 {[%clk 0:02:29.1]} 18. a3
{[%clk 0:01:50]} 18... Nc7 {[%clk 0:02:27.3]} 19. Rad1 {[%clk 0:01:46.4]} 19...
Rab8 {[%clk 0:02:23.4]} 20. Bg5 {[%clk 0:01:43.6]} 20... Rd7 {[%clk 0:02:15.1]}
21. Bxf6 {[%clk 0:01:38.5]} 21... Bxf6 {[%clk 0:02:13.1]} 22. Ne4 {[%clk
0:01:38.7]} 22... Qxd2 {[%clk 0:02:13.5]} 23. Nxf6+ {[%clk 0:01:38.5]} 23... Kg7
{[%clk 0:02:14.1]} 24. Nxh5+ {[%clk 0:01:37.8]} 24... gxh5 {[%clk 0:02:12.7]}
25. Rxd2 {[%clk 0:01:38.3]} 25... Re7 {[%clk 0:02:07.9]} 26. Re1 {[%clk
0:01:35.7]} 26... Rxe1+ {[%clk 0:02:00.4]} 27. Nxe1 {[%clk 0:01:36.2]} 27... Kf6
{[%clk 0:02:01.1]} 28. Nd3 {[%clk 0:01:09.8]} 28... Kf5 {[%clk 0:01:41.1]} 29.
f3 {[%clk 0:01:02.9]} 29... h4 {[%clk 0:01:41.4]} 30. Kh2 {[%clk 0:00:32]} 30...
Rb5 {[%clk 0:01:35.7]} 31. Kg1 {[%clk 0:00:30.8]} 31... Nxd5 {[%clk 0:01:32.2]}
32. Nf2 {[%clk 0:00:30.1]} 32... Ke6 {[%clk 0:01:14.8]} 33. Ne4 {[%clk
0:00:28.6]} 33... Rb7 {[%clk 0:00:59.3]} 34. Kf2 {[%clk 0:00:27.8]} 34... f5
{[%clk 0:00:56.8]} 35. Ng5+ {[%clk 0:00:17.3]} 35... Ke5 {[%clk 0:00:57.2]} 36.
Re2+ {[%clk 0:00:13.1]} 36... Kd4 {[%clk 0:00:56.7]} 37. Ne6+ {[%clk 0:00:13.1]}
37... Kc4 {[%clk 0:00:57.2]} 38. Rd2 {[%clk 0:00:10.1]} 38... Re7 {[%clk
0:00:54.3]} 39. Ng5 {[%clk 0:00:07.9]} 39... Rb7 {[%clk 0:00:48.8]} 40. Ne6
{[%clk 0:00:07.6]} 40... Rb6 {[%clk 0:00:28.4]} 41. g3 {[%clk 0:00:06.9]} 41...
hxg3+ {[%clk 0:00:26]} 42. Kxg3 {[%clk 0:00:07.8]} 42... Ne7 {[%clk 0:00:24.7]}
43. Nf4 {[%clk 0:00:06.4]} 43... d5 {[%clk 0:00:22.8]} 44. Rc2+ {[%clk
0:00:06.5]} 44... Kb5 {[%clk 0:00:21]} 45. h4 {[%clk 0:00:06.7]} 45... d4 {[%clk
0:00:20.5]} 46. h5 {[%clk 0:00:01.7]} 46... c4 {[%clk 0:00:20.8]} 47. Re2 {[%clk
0:00:01.7]} 47... Ng8 {[%clk 0:00:19.1]} 48. Re5+ {[%clk 0:00:01.9]} 48... Ka4
{[%clk 0:00:19.4]} 49. Rxf5 {[%clk 0:00:02.4]} 49... d3 {[%clk 0:00:18.9]} 50.
Rc5 {[%clk 0:00:02.3]} 50... Kb3 {[%clk 0:00:17.4]} 0-1

[Event "*** Titled Tuesday Blitz"]
[Site "Chess.com"]
[Date "2020.12.01"]
[Round "5"]
[White "Tpros"]
[Black "diamonds13"]
[Result "1-0"]
[WhiteElo "2508"]
[BlackElo "2336"]
[TimeControl "180+1"]
[EndTime "10:55:30 PST"]
[Termination "Tpros won by checkmate"]

1. c4 {[%clk 0:03:00]} 1... e5 {[%clk 0:02:58.1]} 2. d3 {[%clk 0:02:59.9]} 2...
Nc6 {[%clk 0:02:58]} 3. a3 {[%clk 0:03:00.5]} 3... a5 {[%clk 0:02:57]} 4. Nf3
{[%clk 0:03:00.2]} 4... g6 {[%clk 0:02:56.9]} 5. g3 {[%clk 0:03:00.4]} 5... Bg7
{[%clk 0:02:57.2]} 6. Bg2 {[%clk 0:03:01]} 6... d6 {[%clk 0:02:57.5]} 7. Nc3
{[%clk 0:03:01.7]} 7... Nge7 {[%clk 0:02:57.8]} 8. O-O {[%clk 0:03:02.2]} 8...
O-O {[%clk 0:02:57.9]} 9. Rb1 {[%clk 0:03:02.4]} 9... Be6 {[%clk 0:02:56.3]} 10.
b4 {[%clk 0:02:58.3]} 10... axb4 {[%clk 0:02:56]} 11. axb4 {[%clk 0:02:59.2]}
11... Qd7 {[%clk 0:02:55.9]} 12. Ng5 {[%clk 0:02:58.9]} 12... Bf5 {[%clk
0:02:52.7]} 13. b5 {[%clk 0:02:54.6]} 13... Nd8 {[%clk 0:02:51.9]} 14. Nge4
{[%clk 0:02:46.7]} 14... f6 {[%clk 0:02:46.9]} 15. Re1 {[%clk 0:02:45.6]} 15...
Bh3 {[%clk 0:02:42.8]} 16. Bh1 {[%clk 0:02:45.5]} 16... h6 {[%clk 0:02:40.8]}
17. f4 {[%clk 0:02:43]} 17... f5 {[%clk 0:02:39.7]} 18. Nf2 {[%clk 0:02:43.1]}
18... e4 {[%clk 0:02:39.5]} 19. d4 {[%clk 0:02:29.9]} 19... Bg4 {[%clk
0:02:32.7]} 20. Nxg4 {[%clk 0:02:30.1]} 20... fxg4 {[%clk 0:02:31.9]} 21. Nxe4
{[%clk 0:02:25.5]} 21... Nf5 {[%clk 0:02:30.1]} 22. e3 {[%clk 0:02:25.3]} 22...
Re8 {[%clk 0:02:26.9]} 23. Nf2 {[%clk 0:02:25]} 23... h5 {[%clk 0:02:23]} 24.
Bd5+ {[%clk 0:02:21.2]} 24... Kh7 {[%clk 0:02:22.1]} 25. Qd3 {[%clk 0:02:20.1]}
25... c6 {[%clk 0:02:18]} 26. bxc6 {[%clk 0:02:18.8]} 26... bxc6 {[%clk
0:02:17.8]} 27. Bg2 {[%clk 0:02:18]} 27... Ra2 {[%clk 0:02:17.4]} 28. Qb3 {[%clk
0:02:11]} 28... Ra7 {[%clk 0:01:54.9]} 29. Bd2 {[%clk 0:01:49.8]} 29... Qe7
{[%clk 0:01:35.7]} 30. Ne4 {[%clk 0:01:27.4]} 30... Nf7 {[%clk 0:01:27.1]} 31.
Kf2 {[%clk 0:01:12.6]} 31... Rea8 {[%clk 0:01:23.2]} 32. Nc3 {[%clk 0:01:03]}
32... Ra3 {[%clk 0:01:17.2]} 33. Qc2 {[%clk 0:01:01.5]} 33... Qe8 {[%clk
0:00:58.3]} 34. Rb3 {[%clk 0:00:55.1]} 34... Ra1 {[%clk 0:00:46.9]} 35. Rxa1
{[%clk 0:00:49.6]} 35... Rxa1 {[%clk 0:00:46.5]} 36. Rb1 {[%clk 0:00:50.2]}
36... Ra6 {[%clk 0:00:45.4]} 37. Rb7 {[%clk 0:00:49.5]} 37... Nd8 {[%clk
0:00:37.1]} 38. Rb8 {[%clk 0:00:46.3]} 38... Qe7 {[%clk 0:00:32.6]} 39. Be4
{[%clk 0:00:44.5]} 39... Qc7 {[%clk 0:00:19.9]} 40. Qb1 {[%clk 0:00:32.2]} 40...
Kg8 {[%clk 0:00:16.1]} 41. Kg2 {[%clk 0:00:18.1]} 41... Ne7 {[%clk 0:00:16]} 42.
Rb3 {[%clk 0:00:15.1]} 42... Kf7 {[%clk 0:00:16.3]} 43. Rb2 {[%clk 0:00:09.4]}
43... Ra7 {[%clk 0:00:16.7]} 44. Ra2 {[%clk 0:00:09]} 44... Ne6 {[%clk
0:00:17.1]} 45. Rxa7 {[%clk 0:00:08.7]} 45... Qxa7 {[%clk 0:00:17.6]} 46. Qa2
{[%clk 0:00:08.7]} 46... c5 {[%clk 0:00:16.9]} 47. Qxa7 {[%clk 0:00:08.5]} 47...
Ke8 {[%clk 0:00:14.8]} 48. Nd5 {[%clk 0:00:08.2]} 48... Nxd5 {[%clk 0:00:13.9]}
49. Bxd5 {[%clk 0:00:07.7]} 49... Nd8 {[%clk 0:00:14.5]} 50. Qxg7 {[%clk
0:00:07.3]} 50... cxd4 {[%clk 0:00:13.5]} 51. Qxg6+ {[%clk 0:00:06.7]} 51... Kd7
{[%clk 0:00:12.9]} 52. Qf5+ {[%clk 0:00:06.8]} 52... Kc7 {[%clk 0:00:12.8]} 53.
exd4 {[%clk 0:00:07.3]} 53... Kb6 {[%clk 0:00:12.7]} 54. Qd7 {[%clk 0:00:06.9]}
54... Nb7 {[%clk 0:00:12.6]} 55. Qxb7# {[%clk 0:00:05.7]} 1-0

[Event "*** Titled Tuesday Blitz"]
[Site "Chess.com"]
[Date "2020.12.01"]
[Round "5"]
[White "Vandros57"]
[Black "Bodnar_Mykola"]
[Result "0-1"]
[WhiteElo "2156"]
[BlackElo "2377"]
[TimeControl "180+1"]
[EndTime "10:55:30 PST"]
[Termination "Bodnar_Mykola won on time"]

1. d4 {[%clk 0:03:00.9]} 1... Nf6 {[%clk 0:02:59.1]} 2. Nf3 {[%clk 0:02:58.9]}
2... g6 {[%clk 0:02:57.5]} 3. c4 {[%clk 0:02:57.6]} 3... Bg7 {[%clk 0:02:57.9]}
4. Nc3 {[%clk 0:02:56.5]} 4... O-O {[%clk 0:02:58.1]} 5. e4 {[%clk 0:02:54.9]}
5... d6 {[%clk 0:02:58.6]} 6. Be2 {[%clk 0:02:51.7]} 6... e5 {[%clk 0:02:55.2]}
7. dxe5 {[%clk 0:02:50.2]} 7... dxe5 {[%clk 0:02:55.1]} 8. Qxd8 {[%clk
0:02:48.9]} 8... Rxd8 {[%clk 0:02:56]} 9. Bg5 {[%clk 0:02:47]} 9... Re8 {[%clk
0:02:50.5]} 10. Nd5 {[%clk 0:02:44.4]} 10... Nxd5 {[%clk 0:02:48.3]} 11. cxd5
{[%clk 0:02:43.2]} 11... c6 {[%clk 0:02:47.8]} 12. Bc4 {[%clk 0:02:39.7]} 12...
cxd5 {[%clk 0:02:46]} 13. Bxd5 {[%clk 0:02:38.3]} 13... Nc6 {[%clk 0:02:46.2]}
14. h3 {[%clk 0:02:15.2]} 14... Be6 {[%clk 0:02:45.4]} 15. O-O-O {[%clk
0:02:07.7]} 15... Nd4 {[%clk 0:02:38.4]} 16. Nxd4 {[%clk 0:02:04]} 16... exd4
{[%clk 0:02:37.8]} 17. Bxe6 {[%clk 0:01:59.4]} 17... Rxe6 {[%clk 0:02:25.6]} 18.
f3 {[%clk 0:01:57.8]} 18... Rb6 {[%clk 0:02:23.4]} 19. Rd3 {[%clk 0:01:54.7]}
19... a5 {[%clk 0:02:21.2]} 20. Kb1 {[%clk 0:01:52.1]} 20... a4 {[%clk
0:02:20.9]} 21. a3 {[%clk 0:01:45.2]} 21... Rc6 {[%clk 0:01:53.4]} 22. Rc1
{[%clk 0:01:42.7]} 22... Rac8 {[%clk 0:01:52.8]} 23. Bd2 {[%clk 0:01:23.2]}
23... Kf8 {[%clk 0:01:48]} 24. Bb4+ {[%clk 0:01:06.6]} 24... Ke8 {[%clk
0:01:47.8]} 25. Rdd1 {[%clk 0:01:01.4]} 25... Be5 {[%clk 0:01:33.2]} 26. Rxc6
{[%clk 0:00:57.2]} 26... bxc6 {[%clk 0:01:33.1]} 27. Kc2 {[%clk 0:00:52.8]}
27... c5 {[%clk 0:01:32.2]} 28. Bd2 {[%clk 0:00:48.6]} 28... c4 {[%clk
0:01:31.8]} 29. f4 {[%clk 0:00:43.6]} 29... d3+ {[%clk 0:01:31.6]} 30. Kb1
{[%clk 0:00:41]} 30... Bd4 {[%clk 0:01:30]} 31. Rc1 {[%clk 0:00:33.1]} 31... Kd7
{[%clk 0:01:25]} 32. g4 {[%clk 0:00:32.4]} 32... f6 {[%clk 0:01:15.8]} 33. Rf1
{[%clk 0:00:31.6]} 33... Rb8 {[%clk 0:01:15.2]} 34. Bb4 {[%clk 0:00:25]} 34...
c3 {[%clk 0:01:04.5]} 35. bxc3 {[%clk 0:00:23.8]} 35... Bxc3 {[%clk 0:01:04.4]}
36. Rf3 {[%clk 0:00:20.1]} 36... Bxb4 {[%clk 0:01:03.9]} 37. axb4 {[%clk
0:00:18.7]} 37... Rxb4+ {[%clk 0:01:04.8]} 38. Kc1 {[%clk 0:00:14.9]} 38... Rd4
{[%clk 0:01:03.3]} 39. Kd2 {[%clk 0:00:14.3]} 39... Kc6 {[%clk 0:01:00.1]} 40.
Rxd3 {[%clk 0:00:07.4]} 40... Rxd3+ {[%clk 0:01:01]} 41. Kxd3 {[%clk 0:00:07]}
41... Kc5 {[%clk 0:01:01.5]} 42. Kc3 {[%clk 0:00:06.9]} 42... a3 {[%clk
0:01:01.6]} 43. Kb3 {[%clk 0:00:06.5]} 43... Kd4 {[%clk 0:01:01.8]} 44. e5
{[%clk 0:00:04.1]} 44... fxe5 {[%clk 0:01:01.4]} 45. f5 {[%clk 0:00:04.3]} 45...
gxf5 {[%clk 0:00:56.3]} 46. gxf5 {[%clk 0:00:04.2]} 46... Kd5 {[%clk 0:00:52.5]}
47. Kxa3 {[%clk 0:00:03.1]} 47... e4 {[%clk 0:00:52.8]} 48. Kb3 {[%clk 0:00:03]}
48... Ke5 {[%clk 0:00:53.1]} 49. f6 {[%clk 0:00:03]} 49... Kxf6 {[%clk
0:00:53.3]} 50. Kc3 {[%clk 0:00:03.5]} 50... Ke5 {[%clk 0:00:50.6]} 51. Kd2
{[%clk 0:00:04.4]} 51... Kd4 {[%clk 0:00:50.4]} 52. Ke2 {[%clk 0:00:04.3]} 52...
e3 {[%clk 0:00:50.8]} 53. h4 {[%clk 0:00:04]} 53... Ke4 {[%clk 0:00:50.7]} 54.
h5 {[%clk 0:00:03.9]} 54... h6 {[%clk 0:00:46.9]} 55. Ke1 {[%clk 0:00:03.1]}
55... Kf3 {[%clk 0:00:46.9]} 56. Kf1 {[%clk 0:00:03.2]} 56... Kg3 {[%clk
0:00:45.3]} 57. Ke2 {[%clk 0:00:03.1]} 57... Kf4 {[%clk 0:00:46.2]} 58. Ke1
{[%clk 0:00:02.8]} 58... Ke4 {[%clk 0:00:47.1]} 59. Ke2 {[%clk 0:00:02.8]} 59...
Kd4 {[%clk 0:00:46.4]} 60. Ke1 {[%clk 0:00:02.8]} 60... Ke5 {[%clk 0:00:47.3]}
61. Kf1 {[%clk 0:00:02]} 61... Ke4 {[%clk 0:00:48.2]} 62. Ke2 {[%clk 0:00:01.9]}
62... Kf4 {[%clk 0:00:48.8]} 63. Ke1 {[%clk 0:00:02.2]} 63... Kf3 {[%clk
0:00:49.7]} 64. Kf1 {[%clk 0:00:02.6]} 64... Kg4 {[%clk 0:00:49.8]} 65. Ke1
{[%clk 0:00:02.9]} 65... Kxh5 {[%clk 0:00:50.7]} 66. Ke2 {[%clk 0:00:03]} 66...
Kg4 {[%clk 0:00:50.8]} 67. Kxe3 {[%clk 0:00:03.1]} 67... Kg3 {[%clk 0:00:51.7]}
68. Ke2 {[%clk 0:00:03.3]} 68... Kg2 {[%clk 0:00:51.6]} 0-1